[Event "Titled Tuesday Blitz August 15 Early 2023"]
[White "Moskalenko, Alexander"]
[Black "Sarana, Alexey"]
[WhiteFideId "4155351"]
[BlackFideId "24133795"]
[WhiteElo "2893"]
[BlackElo "3073"]
[Result "0-1"]
[Round "10"]
[TimeControl "180+1"]
[Date "2023.08.15"]
[WhiteClock "0:00:03"]
[BlackClock "0:00:04"]
[Board "15"]

1. c4 {[%clk 0:02:55]}  e5 {[%clk 0:02:58]} 2. Nc3 {[%clk 0:02:56]}  Nf6 {[%clk 0:02:57]} 3. Nf3 {[%clk 0:02:56]}  Nc6 {[%clk 0:02:57]} 4. e4 {[%clk 0:02:57]}  Bb4 {[%clk 0:02:55]} 5. d3 {[%clk 0:02:57]}  d6 {[%clk 0:02:54]} 6. Be2 {[%clk 0:02:57]}  a6 {[%clk 0:02:53]} 7. a3 {[%clk 0:02:57]}  Bc5 {[%clk 0:02:53]} 8. b4 {[%clk 0:02:57]}  Ba7 {[%clk 0:02:53]} 9. O-O {[%clk 0:02:57]}  O-O {[%clk 0:02:53]} 10. Rb1 {[%clk 0:02:48]}  Ne7 {[%clk 0:02:52]} 11. Be3 {[%clk 0:02:48]}  Bxe3 {[%clk 0:02:49]} 12. fxe3 {[%clk 0:02:48]}  Ng6 {[%clk 0:02:48]} 13. Nd2 {[%clk 0:02:46]}  c6 {[%clk 0:02:46]} 14. Qe1 {[%clk 0:02:39]}  b5 {[%clk 0:02:46]} 15. a4 {[%clk 0:02:38]}  Be6 {[%clk 0:02:45]} 16. cxb5 {[%clk 0:02:21]}  cxb5 {[%clk 0:02:41]} 17. axb5 {[%clk 0:02:22]}  Qb6 {[%clk 0:02:33]} 18. bxa6 {[%clk 0:02:13]}  Qxe3+ {[%clk 0:02:32]} 19. Kh1 {[%clk 0:02:03]}  Rxa6 {[%clk 0:02:28]} 20. Rf3 {[%clk 0:01:37]}  Qd4 {[%clk 0:02:27]} 21. Nb5 {[%clk 0:01:29]}  Qb6 {[%clk 0:02:26]} 22. Nc3 {[%clk 0:01:30]}  Nf4 {[%clk 0:02:07]} 23. Nc4 {[%clk 0:01:12]}  Bxc4 {[%clk 0:01:42]} 24. dxc4 {[%clk 0:01:13]}  Raa8 {[%clk 0:01:03]} 25. Bf1 {[%clk 0:01:13]}  Rfb8 {[%clk 0:01:02]} 26. Qd2 {[%clk 0:01:08]}  Qd8 {[%clk 0:00:45]} 27. h3 {[%clk 0:00:58]}  Ne6 {[%clk 0:00:46]} 28. Rd3 {[%clk 0:00:58]}  Nd4 {[%clk 0:00:46]} 29. b5 {[%clk 0:00:44]}  Ra3 {[%clk 0:00:46]} 30. Qe3 {[%clk 0:00:32]}  Nh5 {[%clk 0:00:31]} 31. Ne2 {[%clk 0:00:29]}  Rxd3 {[%clk 0:00:23]} 32. Qxd3 {[%clk 0:00:29]}  Nxe2 {[%clk 0:00:19]} 33. Bxe2 {[%clk 0:00:30]}  Nf4 {[%clk 0:00:19]} 34. Qd2 {[%clk 0:00:30]}  Qb6 {[%clk 0:00:19]} 35. Bf1 {[%clk 0:00:30]}  h5 {[%clk 0:00:18]} 36. Ra1 {[%clk 0:00:23]}  Rd8 {[%clk 0:00:16]} 37. Qa5 {[%clk 0:00:19]}  Qb8 {[%clk 0:00:14]} 38. Qa7 {[%clk 0:00:18]}  Qc8 {[%clk 0:00:15]} 39. Qb6 {[%clk 0:00:15]}  h4 {[%clk 0:00:10]} 40. Ra7 {[%clk 0:00:14]}  Nh5 {[%clk 0:00:10]} 41. Kg1 {[%clk 0:00:11]}  Ng3 {[%clk 0:00:05]} 42. Bd3 {[%clk 0:00:09]}  Rf8 {[%clk 0:00:04]} 43. Qc7 {[%clk 0:00:10]}  Qe6 {[%clk 0:00:04]} 44. Qe7 {[%clk 0:00:09]}  Qh6 {[%clk 0:00:04]} 45. Kh2 {[%clk 0:00:07]}  Qf4 {[%clk 0:00:04]} 46. Kg1 {[%clk 0:00:02]}  Qc1+ {[%clk 0:00:04]} 47. Kh2 {[%clk 0:00:03]}  Qh1# {[%clk 0:00:04]} 0-1


[Site "https://www.chess.com"]

[Event "Titled Tuesday Blitz August 15 Early 2023"]
[White "Indjic, Aleksandar"]
[Black "Timofeev, Artyom"]
[WhiteFideId "911925"]
[BlackFideId "4140419"]
[WhiteElo "3012"]
[BlackElo "2836"]
[Result "0-1"]
[Round "10"]
[TimeControl "180+1"]
[Date "2023.08.15"]
[WhiteClock "0:00:12"]
[BlackClock "0:00:14"]
[Board "18"]

1. e4 {[%clk 0:02:55]}  e6 {[%clk 0:02:59]} 2. c3 {[%clk 0:02:54]}  d5 {[%clk 0:02:57]} 3. e5 {[%clk 0:02:54]}  d4 {[%clk 0:02:56]} 4. Bd3 {[%clk 0:02:52]}  c5 {[%clk 0:02:53]} 5. f4 {[%clk 0:02:52]}  Nc6 {[%clk 0:02:52]} 6. Qe2 {[%clk 0:02:51]}  Nge7 {[%clk 0:02:51]} 7. Be4 {[%clk 0:02:49]}  b6 {[%clk 0:02:45]} 8. Nf3 {[%clk 0:02:48]}  Bb7 {[%clk 0:02:45]} 9. d3 {[%clk 0:02:48]}  Qd7 {[%clk 0:02:45]} 10. c4 {[%clk 0:02:48]}  f5 {[%clk 0:02:36]} 11. exf6 {[%clk 0:02:47]}  gxf6 {[%clk 0:02:37]} 12. O-O {[%clk 0:02:47]}  O-O-O {[%clk 0:02:28]} 13. a3 {[%clk 0:02:44]}  f5 {[%clk 0:02:28]} 14. Bxc6 {[%clk 0:02:43]}  Nxc6 {[%clk 0:02:28]} 15. b4 {[%clk 0:02:43]}  Rg8 {[%clk 0:02:20]} 16. Rf2 {[%clk 0:02:28]}  Re8 {[%clk 0:02:18]} 17. b5 {[%clk 0:02:27]}  Nd8 {[%clk 0:02:12]} 18. Ne5 {[%clk 0:02:26]}  Qc7 {[%clk 0:02:07]} 19. Nd2 {[%clk 0:02:26]}  Nf7 {[%clk 0:02:06]} 20. Ndf3 {[%clk 0:02:23]}  Bd6 {[%clk 0:02:06]} 21. a4 {[%clk 0:02:18]}  Nxe5 {[%clk 0:01:57]} 22. Nxe5 {[%clk 0:02:14]}  Bxe5 {[%clk 0:01:56]} 23. fxe5 {[%clk 0:02:14]}  Rg6 {[%clk 0:01:35]} 24. Bf4 {[%clk 0:01:49]}  Reg8 {[%clk 0:01:35]} 25. g3 {[%clk 0:01:49]}  Qf7 {[%clk 0:01:29]} 26. Rff1 {[%clk 0:01:46]}  h5 {[%clk 0:01:28]} 27. Kf2 {[%clk 0:01:46]}  h4 {[%clk 0:01:27]} 28. a5 {[%clk 0:01:40]}  Rg4 {[%clk 0:01:26]} 29. Ke1 {[%clk 0:01:39]}  Rh8 {[%clk 0:01:25]} 30. axb6 {[%clk 0:01:37]}  axb6 {[%clk 0:01:24]} 31. Kd2 {[%clk 0:01:37]}  hxg3 {[%clk 0:01:12]} 32. hxg3 {[%clk 0:01:38]}  Rg7 {[%clk 0:01:10]} 33. Kc2 {[%clk 0:01:37]}  Rgh7 {[%clk 0:01:09]} 34. Rf2 {[%clk 0:01:34]}  Qg7 {[%clk 0:01:01]} 35. Kb3 {[%clk 0:01:18]}  Qg4 {[%clk 0:01:00]} 36. Qxg4 {[%clk 0:00:40]}  fxg4 {[%clk 0:00:59]} 37. Bg5 {[%clk 0:00:41]}  Bf3 {[%clk 0:00:32]} 38. Bf6 {[%clk 0:00:40]}  Rg8 {[%clk 0:00:29]} 39. Ra6 {[%clk 0:00:36]}  Rh3 {[%clk 0:00:23]} 40. Bh4 {[%clk 0:00:30]}  Kc7 {[%clk 0:00:19]} 41. Ra7+ {[%clk 0:00:28]}  Kb8 {[%clk 0:00:18]} 42. Rh7 {[%clk 0:00:23]}  Rh1 {[%clk 0:00:17]} 43. Be7 {[%clk 0:00:12]}  Rxh7 {[%clk 0:00:14]} 0-1


[Site "https://www.chess.com"]

[Event "Titled Tuesday Blitz August 15 Early 2023"]
[White "Hakobyan, Aram"]
[Black "Klukin, Kirill"]
[WhiteFideId "13306677"]
[BlackFideId "24199273"]
[WhiteElo "2954"]
[BlackElo "2829"]
[Result "1-0"]
[Round "10"]
[TimeControl "180+1"]
[Date "2023.08.15"]
[WhiteClock "0:00:42"]
[BlackClock "0:00:01"]
[Board "19"]

1. e4 {[%clk 0:03:00]}  c5 {[%clk 0:03:00]} 2. Nc3 {[%clk 0:02:58]}  g6 {[%clk 0:02:59]} 3. h4 {[%clk 0:02:57]}  h5 {[%clk 0:02:53]} 4. d4 {[%clk 0:02:39]}  cxd4 {[%clk 0:02:53]} 5. Qxd4 {[%clk 0:02:40]}  Nf6 {[%clk 0:02:54]} 6. e5 {[%clk 0:02:41]}  Nc6 {[%clk 0:02:53]} 7. Qf4 {[%clk 0:02:41]}  Ng4 {[%clk 0:02:49]} 8. Nf3 {[%clk 0:02:42]}  Bg7 {[%clk 0:02:38]} 9. Bc4 {[%clk 0:02:04]}  Ngxe5 {[%clk 0:02:25]} 10. Nxe5 {[%clk 0:02:05]}  Nxe5 {[%clk 0:02:24]} 11. Bb3 {[%clk 0:02:05]}  e6 {[%clk 0:01:51]} 12. Qg3 {[%clk 0:02:03]}  d5 {[%clk 0:01:47]} 13. Bf4 {[%clk 0:02:01]}  Nc6 {[%clk 0:01:41]} 14. Bc7 {[%clk 0:01:43]}  Qf6 {[%clk 0:01:34]} 15. Bd6 {[%clk 0:01:41]}  Nd4 {[%clk 0:00:53]} 16. Qh2 {[%clk 0:01:38]}  Nf5 {[%clk 0:00:52]} 17. Ba3 {[%clk 0:01:33]}  Bf8 {[%clk 0:00:43]} 18. Bxf8 {[%clk 0:01:30]}  Kxf8 {[%clk 0:00:44]} 19. O-O-O {[%clk 0:01:30]}  Kg7 {[%clk 0:00:42]} 20. f3 {[%clk 0:01:18]}  Bd7 {[%clk 0:00:39]} 21. Kb1 {[%clk 0:01:14]}  Rac8 {[%clk 0:00:39]} 22. Qg1 {[%clk 0:01:08]}  a5 {[%clk 0:00:37]} 23. a3 {[%clk 0:01:08]}  b5 {[%clk 0:00:37]} 24. g4 {[%clk 0:01:05]}  hxg4 {[%clk 0:00:29]} 25. fxg4 {[%clk 0:01:06]}  Nxh4 {[%clk 0:00:29]} 26. g5 {[%clk 0:01:06]}  Qe7 {[%clk 0:00:11]} 27. Qd4+ {[%clk 0:00:54]}  e5 {[%clk 0:00:12]} 28. Qb6 {[%clk 0:00:55]}  Be6 {[%clk 0:00:09]} 29. Nxd5 {[%clk 0:00:53]}  Bxd5 {[%clk 0:00:08]} 30. Rxd5 {[%clk 0:00:54]}  Nf5 {[%clk 0:00:08]} 31. Rhd1 {[%clk 0:00:55]}  a4 {[%clk 0:00:07]} 32. Ba2 {[%clk 0:00:53]}  Rc7 {[%clk 0:00:07]} 33. Qxb5 {[%clk 0:00:53]}  Rhc8 {[%clk 0:00:07]} 34. c3 {[%clk 0:00:53]}  Rc5 {[%clk 0:00:07]} 35. Rxc5 {[%clk 0:00:53]}  Rxc5 {[%clk 0:00:08]} 36. Qxa4 {[%clk 0:00:54]}  Qxg5 {[%clk 0:00:08]} 37. Qb4 {[%clk 0:00:53]}  Rc7 {[%clk 0:00:08]} 38. a4 {[%clk 0:00:53]}  Qf6 {[%clk 0:00:08]} 39. Bb3 {[%clk 0:00:54]}  Ne3 {[%clk 0:00:07]} 40. Rd6 {[%clk 0:00:51]}  Qf5+ {[%clk 0:00:07]} 41. Ka2 {[%clk 0:00:52]}  Nc2 {[%clk 0:00:06]} 42. Qb8 {[%clk 0:00:45]}  Re7 {[%clk 0:00:04]} 43. Rd8 {[%clk 0:00:44]}  Ne1 {[%clk 0:00:02]} 44. Rg8+ {[%clk 0:00:44]}  Kf6 {[%clk 0:00:03]} 45. Qd6+ {[%clk 0:00:44]}  Re6 {[%clk 0:00:03]} 46. Qd8+ {[%clk 0:00:45]}  Re7 {[%clk 0:00:03]} 47. Bxf7 {[%clk 0:00:43]}  Qd7 {[%clk 0:00:02]} 48. Rxg6+ {[%clk 0:00:42]}  Kxf7 {[%clk 0:00:01]} 49. Qg8# {[%clk 0:00:42]} 1-0


[Site "https://www.chess.com"]

[Event "Titled Tuesday Blitz August 15 Early 2023"]
[White "Chigaev, Maksim"]
[Black "Pakleza, Zbigniew"]
[WhiteFideId "4108116"]
[BlackFideId "1119290"]
[WhiteElo "2947"]
[BlackElo "2823"]
[Result "1-0"]
[Round "10"]
[TimeControl "180+1"]
[Date "2023.08.15"]
[WhiteClock "0:00:18"]
[BlackClock "0:00:00"]
[Board "20"]

1. e4 {[%clk 0:03:00]}  d6 {[%clk 0:03:00]} 2. d4 {[%clk 0:02:59]}  Nf6 {[%clk 0:03:00]} 3. Nc3 {[%clk 0:03:00]}  c6 {[%clk 0:03:01]} 4. f4 {[%clk 0:03:00]}  Qb6 {[%clk 0:03:00]} 5. h3 {[%clk 0:02:48]}  e5 {[%clk 0:02:59]} 6. Nf3 {[%clk 0:02:44]}  Nbd7 {[%clk 0:02:55]} 7. a3 {[%clk 0:02:38]}  Nh5 {[%clk 0:02:46]} 8. Bc4 {[%clk 0:02:09]}  Nxf4 {[%clk 0:02:20]} 9. Bxf4 {[%clk 0:02:04]}  exf4 {[%clk 0:02:21]} 10. O-O {[%clk 0:02:04]}  Be7 {[%clk 0:02:16]} 11. Qd2 {[%clk 0:02:02]}  Ne5 {[%clk 0:02:04]} 12. Bb3 {[%clk 0:02:01]}  Nxf3+ {[%clk 0:01:55]} 13. Rxf3 {[%clk 0:02:02]}  g5 {[%clk 0:01:54]} 14. Kh1 {[%clk 0:02:00]}  Bd7 {[%clk 0:01:42]} 15. Re1 {[%clk 0:01:51]}  O-O-O {[%clk 0:01:37]} 16. Bxf7 {[%clk 0:01:50]}  g4 {[%clk 0:01:17]} 17. hxg4 {[%clk 0:01:25]}  Bxg4 {[%clk 0:01:18]} 18. Rxf4 {[%clk 0:01:17]}  Bg5 {[%clk 0:01:18]} 19. Nd5 {[%clk 0:01:18]}  Qa6 {[%clk 0:00:36]} 20. Qf2 {[%clk 0:00:49]}  Bxf4 {[%clk 0:00:35]} 21. Qxf4 {[%clk 0:00:50]}  h5 {[%clk 0:00:28]} 22. Ne7+ {[%clk 0:00:46]}  Kc7 {[%clk 0:00:15]} 23. Ng6 {[%clk 0:00:47]}  Rh7 {[%clk 0:00:13]} 24. e5 {[%clk 0:00:43]}  dxe5 {[%clk 0:00:11]} 25. Rxe5 {[%clk 0:00:42]}  Kb6 {[%clk 0:00:08]} 26. Re7 {[%clk 0:00:28]}  Qb5 {[%clk 0:00:03]} 27. Qc7+ {[%clk 0:00:19]}  Ka6 {[%clk 0:00:03]} 28. Bc4 {[%clk 0:00:20]}  Qxc4 {[%clk 0:00:01]} 29. Qxb7+ {[%clk 0:00:20]}  Ka5 {[%clk 0:00:02]} 30. Qxa7+ {[%clk 0:00:19]}  Qa6 {[%clk 0:00:00]} 31. Qc5+ {[%clk 0:00:18]} 1-0


[Site "https://www.chess.com"]

[Event "Titled Tuesday Blitz August 15 Early 2023"]
[White "Materia, Marco"]
[Black "Zhigalko, Sergei"]
[WhiteFideId "45150451"]
[BlackFideId "13502956"]
[WhiteElo "2807"]
[BlackElo "2929"]
[Result "0-1"]
[Round "10"]
[TimeControl "180+1"]
[Date "2023.08.15"]
[WhiteClock "0:00:26"]
[BlackClock "0:00:17"]
[Board "22"]

1. d4 {[%clk 0:03:00]}  Nf6 {[%clk 0:03:00]} 2. c4 {[%clk 0:03:01]}  e6 {[%clk 0:03:00]} 3. Nf3 {[%clk 0:03:02]}  b6 {[%clk 0:03:01]} 4. g3 {[%clk 0:03:01]}  Ba6 {[%clk 0:03:00]} 5. Qa4 {[%clk 0:03:00]}  Bb7 {[%clk 0:03:00]} 6. Bg2 {[%clk 0:03:01]}  c5 {[%clk 0:03:00]} 7. dxc5 {[%clk 0:03:01]}  bxc5 {[%clk 0:03:01]} 8. O-O {[%clk 0:03:01]}  Be7 {[%clk 0:03:01]} 9. Rd1 {[%clk 0:03:02]}  O-O {[%clk 0:03:01]} 10. Nc3 {[%clk 0:03:02]}  Qb6 {[%clk 0:03:01]} 11. Bf4 {[%clk 0:03:01]}  Rd8 {[%clk 0:02:58]} 12. Rd2 {[%clk 0:02:52]}  d6 {[%clk 0:02:56]} 13. Rad1 {[%clk 0:02:48]}  h6 {[%clk 0:02:54]} 14. Qb5 {[%clk 0:02:35]}  Qc7 {[%clk 0:02:53]} 15. Qb3 {[%clk 0:02:33]}  a6 {[%clk 0:02:53]} 16. Nh4 {[%clk 0:02:25]}  Nc6 {[%clk 0:02:46]} 17. Be3 {[%clk 0:02:07]}  Rab8 {[%clk 0:02:10]} 18. Ne4 {[%clk 0:01:42]}  Nxe4 {[%clk 0:01:30]} 19. Bxe4 {[%clk 0:01:41]}  Bxh4 {[%clk 0:01:17]} 20. gxh4 {[%clk 0:01:40]}  Qe7 {[%clk 0:00:55]} 21. Bf4 {[%clk 0:01:15]}  Nd4 {[%clk 0:00:51]} 22. Qe3 {[%clk 0:00:59]}  Bxe4 {[%clk 0:00:49]} 23. Qxe4 {[%clk 0:01:00]}  Qxh4 {[%clk 0:00:47]} 24. e3 {[%clk 0:00:59]}  Qg4+ {[%clk 0:00:35]} 25. Kh1 {[%clk 0:00:59]}  Nf3 {[%clk 0:00:35]} 26. Rc2 {[%clk 0:00:48]}  e5 {[%clk 0:00:26]} 27. Rc3 {[%clk 0:00:37]}  Ng5 {[%clk 0:00:17]} 28. f3 {[%clk 0:00:27]}  Nxe4 {[%clk 0:00:16]} 29. fxg4 {[%clk 0:00:26]}  Nxc3 {[%clk 0:00:17]} 0-1


[Site "https://www.chess.com"]

[Event "Titled Tuesday Blitz August 15 Early 2023"]
[White "Kazakouski, Valery"]
[Black "Pert, Richard G"]
[WhiteFideId "13507443"]
[BlackFideId "404748"]
[WhiteElo "2924"]
[BlackElo "2654"]
[Result "1/2-1/2"]
[Round "10"]
[TimeControl "180+1"]
[Date "2023.08.15"]
[WhiteClock "0:00:32"]
[BlackClock "0:01:12"]
[Board "23"]

1. Nf3 {[%clk 0:03:00]}  e6 {[%clk 0:02:57]} 2. c4 {[%clk 0:03:01]}  f5 {[%clk 0:02:57]} 3. g3 {[%clk 0:03:01]}  Nf6 {[%clk 0:02:57]} 4. Bg2 {[%clk 0:03:01]}  Be7 {[%clk 0:02:57]} 5. O-O {[%clk 0:03:02]}  O-O {[%clk 0:02:58]} 6. d4 {[%clk 0:03:02]}  d6 {[%clk 0:02:58]} 7. Nc3 {[%clk 0:03:02]}  Ne4 {[%clk 0:02:58]} 8. Qd3 {[%clk 0:03:02]}  Nxc3 {[%clk 0:02:55]} 9. bxc3 {[%clk 0:03:03]}  Nc6 {[%clk 0:02:54]} 10. e4 {[%clk 0:03:03]}  e5 {[%clk 0:02:51]} 11. dxe5 {[%clk 0:03:03]}  dxe5 {[%clk 0:02:49]} 12. Qd5+ {[%clk 0:03:03]}  Kh8 {[%clk 0:02:48]} 13. exf5 {[%clk 0:02:49]}  Bxf5 {[%clk 0:02:42]} 14. Be3 {[%clk 0:02:49]}  Qe8 {[%clk 0:02:14]} 15. Rfe1 {[%clk 0:02:30]}  Rd8 {[%clk 0:02:09]} 16. Qb5 {[%clk 0:02:30]}  Be4 {[%clk 0:02:03]} 17. Nd2 {[%clk 0:02:04]}  Bxg2 {[%clk 0:02:02]} 18. Kxg2 {[%clk 0:02:05]}  Qf7 {[%clk 0:01:41]} 19. Rad1 {[%clk 0:02:02]}  Bg5 {[%clk 0:01:26]} 20. Bxg5 {[%clk 0:00:32]}  Qxf2+ {[%clk 0:01:23]} 21. Kh1 {[%clk 0:00:31]}  Rxd2 {[%clk 0:01:13]} 22. Bxd2 {[%clk 0:00:30]}  Qf3+ {[%clk 0:01:13]} 23. Kg1 {[%clk 0:00:31]}  Qf2+ {[%clk 0:01:13]} 24. Kh1 {[%clk 0:00:31]}  Qf3+ {[%clk 0:01:12]} 25. Kg1 {[%clk 0:00:31]}  Qf2+ {[%clk 0:01:12]} 26. Kh1 {[%clk 0:00:32]} 1/2-1/2


[Site "https://www.chess.com"]

[Event "Titled Tuesday Blitz August 15 Early 2023"]
[White "Kushko, Dmitriy"]
[Black "Lazavik, Denis"]
[WhiteFideId "14162261"]
[BlackFideId "13515110"]
[WhiteElo "2698"]
[BlackElo "3033"]
[Result "0-1"]
[Round "10"]
[TimeControl "180+1"]
[Date "2023.08.15"]
[WhiteClock "0:00:00"]
[BlackClock "0:01:54"]
[Board "25"]

1. Nf3 {[%clk 0:03:00]}  d5 {[%clk 0:02:59]} 2. g3 {[%clk 0:03:01]}  c6 {[%clk 0:02:55]} 3. Bg2 {[%clk 0:03:01]}  Bg4 {[%clk 0:02:56]} 4. h3 {[%clk 0:03:00]}  Bh5 {[%clk 0:02:55]} 5. O-O {[%clk 0:03:00]}  Nd7 {[%clk 0:02:55]} 6. d4 {[%clk 0:03:00]}  e6 {[%clk 0:02:55]} 7. c4 {[%clk 0:03:01]}  Ngf6 {[%clk 0:02:53]} 8. cxd5 {[%clk 0:03:01]}  exd5 {[%clk 0:02:53]} 9. Qb3 {[%clk 0:03:01]}  Qb6 {[%clk 0:02:54]} 10. Qe3+ {[%clk 0:03:01]}  Be7 {[%clk 0:02:54]} 11. Nh4 {[%clk 0:03:01]}  Bg6 {[%clk 0:02:55]} 12. Nc3 {[%clk 0:03:01]}  Qd8 {[%clk 0:02:52]} 13. Nxg6 {[%clk 0:03:01]}  hxg6 {[%clk 0:02:53]} 14. Qd3 {[%clk 0:03:00]}  O-O {[%clk 0:02:53]} 15. Bd2 {[%clk 0:02:59]}  Re8 {[%clk 0:02:54]} 16. Rad1 {[%clk 0:02:58]}  a5 {[%clk 0:02:54]} 17. Bf3 {[%clk 0:02:54]}  Nf8 {[%clk 0:02:51]} 18. e4 {[%clk 0:02:38]}  dxe4 {[%clk 0:02:49]} 19. Nxe4 {[%clk 0:02:39]}  Nd5 {[%clk 0:02:50]} 20. a3 {[%clk 0:02:23]}  Ne6 {[%clk 0:02:50]} 21. Nc3 {[%clk 0:02:17]}  Nec7 {[%clk 0:02:43]} 22. h4 {[%clk 0:02:14]}  Qd7 {[%clk 0:02:42]} 23. Rfe1 {[%clk 0:02:04]}  Nxc3 {[%clk 0:02:41]} 24. Bxc3 {[%clk 0:02:02]}  Nd5 {[%clk 0:02:40]} 25. Bd2 {[%clk 0:02:00]}  a4 {[%clk 0:02:41]} 26. Kg2 {[%clk 0:01:52]}  Bf6 {[%clk 0:02:40]} 27. Bc1 {[%clk 0:01:23]}  Nc7 {[%clk 0:02:37]} 28. Rxe8+ {[%clk 0:01:21]}  Rxe8 {[%clk 0:02:36]} 29. Qc4 {[%clk 0:01:21]}  Ra8 {[%clk 0:02:35]} 30. d5 {[%clk 0:01:19]}  cxd5 {[%clk 0:02:34]} 31. Bxd5 {[%clk 0:01:18]}  Nxd5 {[%clk 0:02:34]} 32. Qxd5 {[%clk 0:01:16]}  Qxd5+ {[%clk 0:02:32]} 33. Rxd5 {[%clk 0:01:17]}  Rc8 {[%clk 0:02:32]} 34. Bd2 {[%clk 0:01:01]}  Bxb2 {[%clk 0:02:31]} 35. Bb4 {[%clk 0:01:01]}  Bc3 {[%clk 0:02:20]} 36. Rb5 {[%clk 0:00:47]}  Bxb4 {[%clk 0:02:20]} 37. Rxb4 {[%clk 0:00:47]}  b5 {[%clk 0:02:20]} 38. Rxb5 {[%clk 0:00:46]}  Rc3 {[%clk 0:02:20]} 39. g4 {[%clk 0:00:24]}  Rxa3 {[%clk 0:02:19]} 40. g5 {[%clk 0:00:17]}  Kf8 {[%clk 0:02:14]} 41. Rb7 {[%clk 0:00:14]}  Ra1 {[%clk 0:02:03]} 42. Ra7 {[%clk 0:00:08]}  a3 {[%clk 0:02:03]} 43. Kh2 {[%clk 0:00:08]}  a2 {[%clk 0:02:01]} 44. Kg2 {[%clk 0:00:08]}  Ke8 {[%clk 0:02:01]} 45. Kh2 {[%clk 0:00:04]}  Kd8 {[%clk 0:01:59]} 46. Kg2 {[%clk 0:00:04]}  Kc8 {[%clk 0:02:00]} 47. Kh2 {[%clk 0:00:04]}  Kb8 {[%clk 0:02:00]} 48. Ra4 {[%clk 0:00:04]}  Kb7 {[%clk 0:02:00]} 49. Kg2 {[%clk 0:00:04]}  Kb6 {[%clk 0:02:00]} 50. Kh2 {[%clk 0:00:05]}  Kb5 {[%clk 0:02:01]} 51. Ra8 {[%clk 0:00:05]}  Kc4 {[%clk 0:02:01]} 52. Kg2 {[%clk 0:00:05]}  Kb3 {[%clk 0:02:02]} 53. Rb8+ {[%clk 0:00:05]}  Kc3 {[%clk 0:02:02]} 54. Rc8+ {[%clk 0:00:05]}  Kd3 {[%clk 0:02:01]} 55. Ra8 {[%clk 0:00:06]}  f6 {[%clk 0:02:02]} 56. Ra7 {[%clk 0:00:03]}  f5 {[%clk 0:01:57]} 57. Ra3+ {[%clk 0:00:03]}  Ke2 {[%clk 0:01:54]} 58. f4 {[%clk 0:00:02]}  Kd2 {[%clk 0:01:54]} 59. Ra4 {[%clk 0:00:02]}  Ke3 {[%clk 0:01:54]} 60. Kh2 {[%clk 0:00:00]}  Kf3 {[%clk 0:01:54]} 0-1


[Site "https://www.chess.com"]

[Event "Titled Tuesday Blitz August 15 Early 2023"]
[White "Svane, Rasmus"]
[Black "Prohaszka, Peter"]
[WhiteFideId "4657101"]
[BlackFideId "726265"]
[WhiteElo "2968"]
[BlackElo "2691"]
[Result "1-0"]
[Round "10"]
[TimeControl "180+1"]
[Date "2023.08.15"]
[WhiteClock "0:00:26"]
[BlackClock "0:00:00"]
[Board "26"]

1. Nf3 {[%clk 0:03:00]}  Nf6 {[%clk 0:02:59]} 2. g3 {[%clk 0:03:01]}  g6 {[%clk 0:03:00]} 3. Bg2 {[%clk 0:03:01]}  Bg7 {[%clk 0:03:00]} 4. O-O {[%clk 0:03:02]}  O-O {[%clk 0:03:01]} 5. d4 {[%clk 0:03:03]}  d6 {[%clk 0:03:02]} 6. Re1 {[%clk 0:03:02]}  Nc6 {[%clk 0:02:45]} 7. d5 {[%clk 0:03:02]}  Ne5 {[%clk 0:02:40]} 8. Nxe5 {[%clk 0:03:02]}  dxe5 {[%clk 0:02:41]} 9. c4 {[%clk 0:03:03]}  Rb8 {[%clk 0:02:31]} 10. Nc3 {[%clk 0:03:02]}  e6 {[%clk 0:02:32]} 11. e4 {[%clk 0:02:59]}  Qe7 {[%clk 0:02:19]} 12. Be3 {[%clk 0:02:58]}  b6 {[%clk 0:02:11]} 13. Rc1 {[%clk 0:02:51]}  Rd8 {[%clk 0:02:11]} 14. h3 {[%clk 0:02:42]}  Ne8 {[%clk 0:01:55]} 15. Qc2 {[%clk 0:02:26]}  Nd6 {[%clk 0:01:51]} 16. b3 {[%clk 0:02:17]}  Ba6 {[%clk 0:01:45]} 17. c5 {[%clk 0:02:17]}  Nb5 {[%clk 0:01:45]} 18. Nxb5 {[%clk 0:02:16]}  Bxb5 {[%clk 0:01:46]} 19. a4 {[%clk 0:02:13]}  Ba6 {[%clk 0:01:46]} 20. b4 {[%clk 0:02:11]}  b5 {[%clk 0:01:16]} 21. a5 {[%clk 0:02:06]}  f5 {[%clk 0:01:03]} 22. Red1 {[%clk 0:01:57]}  c6 {[%clk 0:00:47]} 23. dxc6 {[%clk 0:01:50]}  Rbc8 {[%clk 0:00:38]} 24. exf5 {[%clk 0:01:39]}  gxf5 {[%clk 0:00:38]} 25. h4 {[%clk 0:01:25]}  Bf6 {[%clk 0:00:36]} 26. Rxd8+ {[%clk 0:01:16]}  Rxd8 {[%clk 0:00:32]} 27. Rd1 {[%clk 0:01:15]}  Kf7 {[%clk 0:00:26]} 28. Rxd8 {[%clk 0:01:09]}  Qxd8 {[%clk 0:00:26]} 29. Qe2 {[%clk 0:01:02]}  Kg7 {[%clk 0:00:15]} 30. Qh5 {[%clk 0:01:01]}  Bc8 {[%clk 0:00:11]} 31. c7 {[%clk 0:00:46]}  Qe7 {[%clk 0:00:07]} 32. c6 {[%clk 0:00:41]}  Kg8 {[%clk 0:00:05]} 33. Bc5 {[%clk 0:00:40]}  Qf7 {[%clk 0:00:02]} 34. Qxf7+ {[%clk 0:00:35]}  Kxf7 {[%clk 0:00:03]} 35. Bxa7 {[%clk 0:00:35]}  Be7 {[%clk 0:00:04]} 36. Bf1 {[%clk 0:00:24]}  Bxb4 {[%clk 0:00:04]} 37. Bb6 {[%clk 0:00:25]}  Ke7 {[%clk 0:00:01]} 38. Bxb5 {[%clk 0:00:25]}  Kd6 {[%clk 0:00:00]} 39. a6 {[%clk 0:00:26]} 1-0


[Site "https://www.chess.com"]